bitfinex/quotes_ETHUSD_20250925
["timestamp","ask_amount","ask_price","bid_price","bid_amount"]
[1758777500480,0.00100001,4033.9,4033.8,2.85045201]
[1758777500682,0.00100001,4033.9,4033.8,9.04605201]
[1758777501286,0.00100001,4033.9,4033.8,6.567]
[1758777501471,0.00100001,4033.9,4033.8,9.04605201]
[1758777501673,0.00100001,4033.9,4033.8,2.47905201]
[1758777502007,0.70940001,4033.9,4033.8,9.07084253]
[1758777502305,0.70940001,4033.9,4033.8,9.04605201]
[1758777502484,0.70940001,4033.9,4032.8,0.3714]
[1758777502693,3.0,4033.7,4033.6,2.479117]
[1758777503014,3.7084,4033.7,4033.6,6.979117]
[1758777503880,0.00100001,4033.9,4033.8,2.47905201]
[1758777504210,0.00100001,4033.9,4033.8,7.00384253]
[1758777504378,0.00100001,4033.9,4033.8,6.97905201]
[1758777504577,0.00100001,4033.9,4033.8,7.67435201]
[1758777512821,0.00100001,4033.9,4033.8,7.79755201]
[1758777513849,0.00100001,4033.9,4033.8,3.29755201]
[1758777515249,3.7084,4036.8,4036.7,2.47727103]
[1758777515452,3.7084,4036.8,4036.7,6.97127103]
[1758777515954,0.7084,4036.8,4035.2,2.72633175]
[1758777516133,0.7084,4036.7,4036.0,2.47766153]
[1758777516334,0.7084,4036.6,4035.3,2.47808359]
[1758777516535,0.7084,4036.6,4034.8,2.47841587]
[1758777516536,0.7084,4036.5,4036.2,2.47757274]
[1758777516737,0.7084,4036.5,4036.3,6.97051144]
[1758777517047,0.7084,4036.4,4036.3,6.97047028]
[1758777517251,0.7084,4036.4,4036.3,4.493]
[1758777517810,0.7084,4036.4,4035.3,2.47810155]
[1758777518009,0.7084,4036.3,4035.4,2.47806908]
[1758777518214,0.7084,4036.2,4035.5,6.558]
[1758777518415,0.4729,4036.2,4036.1,2.4776393]
[1758777518725,0.4729,4036.2,4036.1,6.9706393]
[1758777518920,0.7084,4036.2,4036.1,6.9706393]
[1758777519812,37.34469203,4036.9,4036.5,2.47739378]
[1758777519813,0.2355,4036.6,4036.5,2.47739378]
[1758777520011,0.7084,4036.6,4036.5,6.96939378]
[1758777520225,0.2355,4036.6,4036.5,6.96939378]
[1758777521243,0.2625,4036.9,4036.8,2.47720967]
[1758777521410,0.10133694,4036.9,4036.8,6.96920967]
[1758777521969,0.79663694,4036.9,4036.8,6.96920967]
[1758777522941,0.33783694,4036.9,4036.8,6.96920967]
[1758777523348,0.79663694,4036.9,4036.8,4.492]
[1758777523666,0.79663694,4036.9,4034.1,5.49883014]
[1758777523667,3.0,4036.8,4035.3,3.13779127]
[1758777523866,0.6953,4036.7,4036.0,2.47764644]
[1758777524068,0.2365,4036.6,4036.1,4.15977639]
[1758777524268,0.2365,4036.6,4036.5,2.47739378]
[1758777524444,0.10133694,4036.9,4036.5,6.96738408]
[1758777524650,0.10133694,4036.9,4036.5,4.49]
[1758777524845,0.10133694,4036.9,4036.5,6.96739345]
[1758777525053,0.33783694,4036.9,4036.8,2.47720967]
[1758777525247,0.33783694,4036.9,4036.8,6.96620967]
[1758777525451,1e-08,4037.0,4036.9,2.4771483]
[1758777525777,1e-08,4037.0,4036.9,3.16161978]
[1758777526275,1e-08,4037.0,4036.9,3.9288483]
[1758777526453,1e-08,4037.9,4037.6,2.4766795]
[1758777526650,1e-08,4037.9,4037.8,2.59979616]
[1758777527184,1e-08,4037.9,4037.8,3.25949616]
[1758777528142,1e-08,4037.9,4037.4,0.228]
[1758777528362,1e-08,4037.9,4037.8,2.47659616]
[1758777528683,1e-08,4037.9,4037.8,6.98936212]
[1758777528883,1e-08,4037.9,4037.8,9.02859616]
[1758777529591,0.00100001,4037.9,4037.8,6.96359616]
[1758777529789,0.00100001,4037.9,4037.8,2.47659616]
[1758777529990,0.00100001,4037.9,4037.8,9.02859616]
[1758777530156,0.00100001,4037.9,4037.8,6.96359616]
[1758777530358,0.00100001,4037.9,4037.8,9.02859616]
[1758777531761,0.00100001,4037.9,4037.5,2.47674902]
[1758777532094,0.00100001,4037.9,4037.6,4.54070992]
[1758777532095,0.2365,4037.8,4037.6,4.54070992]
[1758777532309,0.00100001,4037.9,4037.7,6.55]
[1758777532461,0.00100001,4037.9,4037.8,4.486]
[1758777532664,0.00100001,4037.9,4037.8,6.96259616]
[1758777532863,0.00100001,4037.9,4037.8,2.47659616]
[1758777533097,0.00400001,4037.9,4037.8,9.02659616]
[1758777534062,0.69930001,4037.9,4037.8,2.47659616]
[1758777534266,0.69930001,4037.9,4037.8,6.96159616]
[1758777535793,0.69930001,4037.9,4037.8,2.47659616]
[1758777535981,0.69930001,4037.9,4037.8,6.96159616]
[1758777536184,0.69930001,4037.9,4037.8,2.47659616]
[1758777536493,0.69930001,4037.9,4037.8,6.96159616]
[1758777536903,0.00400001,4037.9,4037.8,6.96159616]
[1758777537697,0.24050001,4037.9,4037.8,6.96159616]
[1758777538002,0.00400001,4037.9,4037.8,6.96159616]
[1758777538802,0.00400001,4037.9,4037.8,7.62129616]
[1758777538959,1e-08,4037.9,4037.8,7.62129616]
[1758777539165,1e-08,4037.9,4037.8,7.74449616]
[1758777539360,1e-08,4037.9,4037.8,3.13629616]
[1758777539595,1e-08,4037.9,4037.8,2.59979616]
[1758777539798,1e-08,4037.9,4037.8,9.68429616]
[1758777541476,1e-08,4037.9,4037.8,10.47629616]
[1758777542907,1e-08,4037.9,4037.8,16.13429616]
[1758777543512,1e-08,4037.9,4037.8,3.13629616]
[1758777543670,1e-08,4037.9,4037.8,9.68229616]
[1758777543991,1e-08,4037.9,4037.8,9.02259616]
[1758777544516,0.23550001,4037.9,4037.8,2.47659616]
[1758777544685,1e-08,4037.9,4037.8,9.02259616]
[1758777545076,0.23550001,4037.9,4037.8,6.546]
[1758777545268,0.69480001,4037.9,4037.8,4.482]
[1758777545780,0.69480001,4037.9,4037.8,6.546]
[1758777546293,0.69480001,4037.9,4035.6,31.07668176]
[1758777546294,3.0,4037.8,4035.6,0.4698]
[1758777546602,0.4593,4037.8,4037.0,2.47702564]
[1758777546779,2.47683779,4037.5,4037.1,4.481]
[1758777546980,0.6948,4037.4,4037.2,4.481]
[1758777547195,0.2355,4037.4,4037.3,6.95790288]
[1758777547373,0.00100001,4037.9,4037.8,2.47659616]
[1758777547572,0.02,4040.9,4039.8,2.47537006]
[1758777547573,1e-08,4039.9,4039.8,2.47537006]
[1758777547811,0.02,4041.9,4039.9,2.47530879]
[1758777548112,0.02,4042.9,4042.8,2.47353319]
[1758777548312,0.02,4042.9,4042.8,9.72873319]
[1758777548487,1e-08,4043.9,4043.8,2.4729215]
[1758777548810,1e-08,4043.9,4042.9,0.7102]
[1758777548996,0.2355,4043.8,4043.0,4.52]
[1758777549211,0.2355,4043.7,4041.9,0.2404]
[1758777549371,0.6948,4043.7,4042.0,6.585]
[1758777549571,0.6948,4043.7,4041.3,6.45]
[1758777549572,31.07668176,4042.7,4042.1,2.063]
[1758777549798,0.6948,4042.6,4042.2,2.306]
[1758777550009,0.6948,4042.5,4042.3,4.211]
[1758777550306,0.6948,4042.5,4040.6,0.2404]
[1758777550307,0.6948,4042.4,4040.6,0.2404]
[1758777550512,31.77148176,4042.4,4040.7,3.931]
[1758777550726,2.47411497,4041.9,4040.8,6.40575305]
[1758777550872,2.47434668,4041.5,4041.1,0.02]
[1758777551215,0.6953,4041.8,4041.2,1.83]
[1758777551505,2.47347991,4042.9,4041.2,1.83]
[1758777551506,0.2425,4041.7,4041.2,1.83]
[1758777551708,0.2425,4041.6,4041.1,0.02]
[1758777551894,2.47439071,4041.4,4041.1,0.02]
[1758777552127,2.47439071,4041.4,4041.2,6.587]
[1758777552300,3.16975129,4041.3,4041.1,0.02]
[1758777552497,2.47451252,4041.2,4041.1,0.02]
[1758777552705,3.16981252,4041.2,4041.1,1.653]
[1758777553099,3.16981252,4041.2,4041.1,0.02]
[1758777553329,0.6953,4041.2,4041.1,2.738]
[1758777553653,3.16981252,4041.2,4041.1,0.02]
[1758777554907,3.96181252,4041.2,4041.1,0.02]
[1758777556040,6.96181252,4041.2,4041.1,0.02]
[1758777556728,6.96181252,4041.2,4040.1,0.02]
[1758777556729,6.26712499,4040.2,4040.1,0.02]
[1758777557131,6.96242499,4040.2,4040.1,0.02]
[1758777558119,2.47573776,4039.2,4039.1,0.02]
[1758777558439,3.0,4039.2,4039.1,0.02]
[1758777558659,5.71823776,4039.2,4039.1,0.02]
[1758777560168,6.51023776,4039.2,4039.1,0.02]
[1758777560312,7.04721767,4039.2,4039.1,0.02]
[1758777560956,37.3450326,4038.2,4038.1,0.02]
[1758777561314,38.0403326,4038.2,4038.1,0.02]
[1758777562322,35.56398176,4038.2,4038.1,0.02]
[1758777562524,38.0403326,4038.2,4038.1,0.02]
[1758777562730,3.0,4038.2,4038.1,0.02]
[1758777562939,5.71885084,4038.2,4038.1,0.02]
[1758777563117,6.96365084,4038.2,4038.1,0.02]
[1758777563833,6.17165084,4038.2,4038.1,0.02]
[1758777564150,3.0,4038.2,4038.1,0.02]
[1758777565716,5.47635084,4038.2,4038.1,0.02]
[1758777565916,6.17165084,4038.2,4038.1,0.02]
[1758777566121,6.96365084,4038.2,4038.1,0.02]
[1758777566456,3.0,4038.2,4038.1,0.02]
[1758777566972,5.72008895,4038.2,4038.1,0.02]
[1758777567195,3.24373811,4038.2,4038.1,0.02]
[1758777567368,3.00123811,4038.2,4038.1,0.02]
[1758777568499,3.00123811,4038.2,4038.1,3.19101217]
[1758777568500,0.00123811,4038.2,4038.1,3.19101217]
[1758777568815,0.00123811,4038.2,4038.1,4.524]
[1758777568980,0.00123811,4038.2,4038.1,4.525]
[1758777569170,0.00123811,4038.2,4038.1,6.589]
[1758777569703,0.08291797,4040.1,4039.6,2.47548532]
[1758777569898,33.55145323,4040.8,4039.8,2.47537006]
[1758777570080,31.07668176,4040.8,4039.7,6.595]
[1758777570280,31.07668176,4040.8,4039.9,2.47530743]
[1758777570503,0.2625,4040.9,4040.0,4.531]
[1758777570504,31.07668176,4040.7,4040.0,4.531]
[1758777570700,31.07668176,4040.7,4039.8,2.47535874]
[1758777570701,2.47487996,4040.6,4039.8,2.47535874]
[1758777570921,2.47494855,4040.5,4039.9,4.892]
[1758777571122,31.16122211,4040.7,4039.9,7.36729615]
[1758777571286,33.63605894,4040.7,4039.9,7.36729615]
[1758777571614,33.63605894,4040.7,4040.0,4.528]
[1758777571817,31.16122211,4040.7,4040.0,4.528]
[1758777572026,33.6360508,4040.7,4040.0,4.528]
[1758777572316,0.08454035,4040.7,4040.2,2.47507476]
[1758777572614,0.02,4040.9,4040.2,3.16967476]
[1758777572916,0.02,4040.9,4040.3,2.47501464]
[1758777573220,0.10415239,4040.9,4040.2,0.6946]
[1758777573424,0.02,4040.9,4040.4,2.4749873]
[1758777573625,0.02,4040.9,4040.5,6.59]
[1758777573626,2.71730523,4040.8,4040.5,6.59]
[1758777573827,3.02,4040.9,4040.6,4.526]
[1758777573828,5.71731871,4040.7,4040.6,4.526]
[1758777574131,0.2425,4040.7,4040.5,4.525]
[1758777574332,3.10390781,4040.9,4040.5,4.525]
[1758777574628,3.10390781,4040.9,4040.0,3.1698467]
[1758777574629,3.10390781,4040.9,4040.6,4.525]
[1758777574819,0.2425,4040.8,4040.7,4.525]
[1758777574994,5.47481871,4040.7,4040.4,2.063]
[1758777575189,0.10390781,4040.9,4039.7,0.2379]
[1758777575190,2.47506262,4040.4,4039.7,0.2379]
[1758777575427,2.47506262,4040.4,4040.3,2.063]
[1758777575622,31.31918176,4040.4,4039.5,0.4567]
[1758777575794,2.47525955,4040.0,4039.9,2.063]
[1758777576232,3.2425,4040.0,4038.8,0.2379]
[1758777576430,33.55230038,4039.4,4038.9,5.437]
[1758777576617,3.0,4039.3,4037.5,0.1232]
[1758777576926,2.47604427,4038.7,4038.2,2.151]
[1758777577099,2.47616643,4038.6,4038.2,2.151]
[1758777577297,2.47616643,4038.6,4037.9,0.6946]
[1758777577638,33.55267133,4038.8,4038.2,6.584]
[1758777577639,2.47604818,4038.7,4038.2,6.584]
[1758777577931,33.55268646,4038.8,4038.3,6.583]
[1758777578135,2.47614044,4038.6,4038.3,6.583]
[1758777578335,3.0,4038.7,4037.8,0.2379]
[1758777578515,2.47633379,4038.3,4037.8,0.2379]
[1758777578716,2.47633379,4038.3,4038.1,0.335]
[1758777579033,3.0,4038.5,4038.1,0.335]
[1758777579235,3.0,4038.7,4038.1,0.5729]
[1758777579414,2.47628952,4038.3,4038.2,5.045]
[1758777579615,2.47628952,4038.3,4038.1,0.02]
[1758777579810,2.47628952,4038.3,4038.2,4.522]
[1758777580016,2.47628952,4038.3,4038.1,0.02]
[1758777580215,2.47635084,4038.2,4038.1,0.02]
[1758777580414,2.47635084,4038.2,4038.1,6.142]
[1758777580701,2.47635084,4038.2,4038.1,0.02]
[1758777580702,2.71885084,4038.2,4038.1,0.02]
[1758777580927,5.71885084,4038.2,4038.1,0.02]
[1758777581324,6.16595084,4038.2,4038.1,0.02]
[1758777581849,6.95795084,4038.2,4038.1,0.02]
[1758777583103,3.0,4038.2,4038.1,0.02]
[1758777583300,5.47635084,4038.2,4038.1,0.02]
[1758777583622,3.0,4038.2,4038.1,0.02]
[1758777584031,5.47635084,4038.2,4038.1,0.02]
[1758777584848,6.15795084,4038.2,4038.1,0.02]
[1758777585028,6.94995084,4038.2,4038.1,0.02]
[1758777585343,11.46295084,4038.2,4038.1,0.02]
[1758777586830,11.46295084,4038.2,4037.1,2.084]
[1758777586831,2.47696423,4037.2,4037.1,0.02]
[1758777587037,36.55364599,4037.2,4037.1,0.02]
[1758777588524,36.78814599,4037.2,4037.1,0.02]
[1758777589066,5.47696423,4037.2,4037.1,0.02]
[1758777589267,36.55364599,4037.2,4037.1,0.02]
[1758777589933,36.78814599,4037.2,4037.1,0.02]
[1758777591147,42.08014599,4037.2,4037.1,0.02]
[1758777591366,36.55364599,4037.2,4037.1,0.02]
[1758777591731,34.07668176,4037.2,4037.1,0.02]
[1758777591951,36.55364599,4037.2,4037.1,0.02]
[1758777592264,34.07668176,4037.2,4037.1,0.02]
[1758777592761,31.07668176,4037.5,4037.1,0.7294]
[1758777592925,31.07668176,4038.0,4037.2,0.7094]
[1758777593130,31.07668176,4038.0,4037.1,0.02]
[1758777593131,31.07668176,4038.0,4037.3,0.7094]
[1758777593334,31.07668176,4038.0,4037.4,0.7094]
[1758777593541,31.07668176,4038.0,4037.5,0.2445]
[1758777593742,31.07668176,4038.0,4037.4,2.064]
[1758777594140,33.55316477,4038.0,4037.4,2.064]
[1758777594441,2.47663897,4037.8,4037.3,2.064]
[1758777594642,2.47667223,4037.7,4037.3,0.2445]
[1758777594842,2.47658044,4037.9,4037.3,0.2445]
[1758777595044,2.47659892,4037.8,4037.4,0.4649]
[1758777595233,31.07668176,4037.5,4037.1,0.02]
[1758777595427,33.55347054,4037.5,4037.1,0.02]
[1758777595761,33.55348154,4037.5,4037.1,0.02]
[1758777596130,2.47695044,4037.3,4037.1,0.02]
[1758777596561,2.47696423,4037.2,4037.1,0.02]
[1758777596967,2.71146423,4037.2,4037.1,0.02]
[1758777597162,2.47696423,4037.2,4037.1,0.02]
[1758777598760,42.91686721,4037.2,4037.1,0.02]
[1758777599337,40.20540298,4037.2,4037.1,0.02]
[1758777599579,37.20540298,4037.4,4037.1,0.02]
[1758777599786,2.49532821,4039.9,4037.1,0.7294]
[1758777599787,0.2345,4038.4,4037.1,0.7294]
[1758777600081,39.68185831,4038.1,4037.4,2.47683732]
[1758777600245,3.0,4038.0,4037.4,4.487]
[1758777600449,3.0,4038.0,4037.5,0.7094]
[1758777600751,2.47629499,4038.3,4037.1,2.49702303]
[1758777600752,37.20540298,4037.6,4037.1,0.02]
[1758777601073,2.4757082,4039.3,4037.1,6.571]
[1758777601243,3.0,4038.3,4037.6,2.47667202]
[1758777601436,3.0,4038.3,4037.2,0.7094]
[1758777601437,37.20540298,4038.4,4037.7,3.17489035]
[1758777601678,1.20727443,4040.7,4037.1,6.571]
[1758777601679,4.487,4039.1,4037.9,2.47653483]
[1758777601830,4.487,4039.1,4037.9,2.47652537]
[1758777601831,5.47608992,4038.7,4037.9,2.47652537]
[1758777602026,5.47604676,4038.7,4038.0,0.6735]
[1758777602231,0.02,4039.9,4038.1,7.24926412]
[1758777602432,0.02,4039.9,4038.5,0.1232]
[1758777602665,3.02,4039.9,4038.6,7.2515]
[1758777602864,3.02,4039.9,4039.0,2.47586036]
[1758777603065,0.02,4039.9,4038.9,0.6735]
[1758777603232,37.20540298,4039.5,4038.9,0.6735]
[1758777603427,37.20540298,4039.5,4038.7,2.064]
[1758777603628,39.68129365,4039.0,4037.3,2.47684956]
[1758777603881,37.20540298,4038.5,4038.1,0.6735]
[1758777604050,37.20540298,4038.5,4038.1,3.14989207]
[1758777604387,37.20540298,4038.5,4038.1,0.6735]
[1758777604568,37.20540298,4038.5,4038.2,3.149841]
[1758777604779,37.20540298,4038.5,4038.3,0.2374]
[1758777604957,37.20540298,4038.5,4038.2,2.476341]
[1758777604958,3.0,4038.8,4038.4,0.6735]
[1758777605296,3.0,4039.0,4038.5,0.6735]
[1758777605498,3.0,4039.2,4038.5,0.6735]
[1758777605694,7.509,4039.2,4038.5,3.14961341]
[1758777605865,9.98475247,4039.2,4038.5,0.6735]
[1758777606193,37.20540298,4038.8,4036.4,2.47745319]
[1758777606401,2.47610858,4038.6,4037.8,2.47657471]
[1758777606684,4.506,4038.7,4037.7,0.2374]
[1758777606864,4.506,4038.7,4037.8,2.47659616]
[1758777607066,3.0,4038.7,4038.0,2.4764735]
[1758777607266,3.0,4038.7,4038.4,2.47617943]
[1758777607467,4.503,4039.0,4038.5,2.71356201]
[1758777607670,4.503,4039.0,4038.5,0.2374]
[1758777608093,0.2672,4039.9,4038.6,0.6735]
[1758777608305,2.47562352,4039.4,4038.4,5.852]
[1758777608457,2.47567866,4039.3,4038.5,2.47615487]
[1758777608859,47.19189747,4039.6,4038.4,4.5402028]
[1758777608860,2.4756156,4039.4,4038.4,4.5402028]
[1758777609061,44.71640298,4039.6,4038.5,0.02476166]
[1758777609259,47.19190228,4039.6,4038.8,2.47597376]
[1758777609497,2.4756079,4039.5,4038.6,2.47604751]
[1758777609701,2.47563557,4039.4,4038.6,2.47604751]
[1758777609866,44.71640298,4039.6,4038.5,3.14965948]
[1758777610073,44.71640298,4039.6,4038.9,2.47586153]
[1758777610257,0.02,4039.9,4039.0,0.6735]
[1758777610458,0.02,4039.9,4039.1,4.52975799]
[1758777610761,0.02,4039.9,4039.7,2.47541786]
[1758777610985,0.02,4039.9,4039.8,2.47537006]
[1758777611696,0.02,4039.9,4039.7,2.47541954]
[1758777611909,0.02,4039.9,4039.8,2.47537006]
[1758777612085,0.02,4039.9,4039.8,2.70517006]
[1758777612292,0.02,4039.9,4039.8,3.17842376]
[1758777612597,0.02,4039.9,4039.8,2.47537006]
[1758777612957,0.02,4039.9,4039.8,3.15367006]
[1758777613658,0.02,4039.9,4039.8,5.2143]
[1758777613889,0.02,4039.9,4039.8,7.68967006]
[1758777614090,0.02,4039.9,4039.6,2.47547793]
[1758777614504,0.02,4039.9,4039.6,2.70527793]
[1758777614812,0.02,4039.9,4039.5,2.47553452]
[1758777614973,0.02,4039.9,4039.4,7.00860481]
[1758777615173,0.02,4039.9,4039.4,0.2298]
[1758777615380,0.02,4039.9,4039.5,4.533]
[1758777615684,0.02,4039.9,4039.1,0.4485]
[1758777615685,37.47380298,4039.9,4038.8,0.2298]
[1758777615921,2.47541687,4039.8,4039.0,2.47581437]
[1758777616289,39.949126,4039.9,4039.1,2.47578837]
[1758777616482,37.47380298,4039.9,4039.2,2.47573221]
[1758777616668,37.22540298,4039.9,4039.3,2.47566838]
[1758777616869,2.4753812,4039.8,4038.9,6.248]
[1758777617085,37.22540298,4039.9,4039.0,2.47586036]
[1758777617282,39.70071597,4039.9,4039.1,2.47579906]
[1758777617603,39.70071597,4039.9,4038.8,0.6783]
[1758777617604,0.02,4039.9,4039.0,6.99985666]
[1758777617810,2.49531669,4039.9,4039.2,2.47572562]
[1758777618016,2.47537645,4039.8,4039.1,2.47579151]
[1758777618218,2.49532721,4039.9,4039.1,2.47579151]
[1758777618519,2.47538067,4039.8,4039.1,2.47579151]
[1758777619169,2.49531688,4039.9,4039.2,2.47573734]
[1758777619821,0.02,4039.9,4038.5,6.66179972]
[1758777620120,0.02,4039.9,4038.6,7.2593]
[1758777620325,0.02,4039.9,4038.7,2.47604427]
[1758777620529,0.02,4039.9,4039.0,2.47580409]
[1758777620842,0.02,4039.9,4039.8,2.47537006]
[1758777621288,0.02,4039.9,4039.8,3.15367006]
[1758777621889,0.02,4039.9,4039.8,7.33936306]
[1758777623117,0.02,4039.9,4039.8,11.85836306]
[1758777623319,0.02,4039.9,4039.8,13.92136306]
[1758777623703,0.02,4039.9,4039.8,13.91936306]
[1758777623898,0.02,4039.9,4038.9,4.185693]
[1758777624089,0.2684,4039.9,4039.0,10.763693]
[1758777624420,0.2684,4039.9,4039.1,4.522]
[1758777624589,0.2684,4039.9,4038.9,0.6783]
[1758777624590,2.47542394,4039.8,4038.9,0.6783]
[1758777624791,2.47542394,4039.8,4039.0,4.521]
[1758777625097,2.47540149,4039.8,4039.1,2.47578523]
[1758777625296,0.2684,4039.9,4039.1,4.518]
[1758777625496,2.4755694,4039.5,4039.1,4.518]
[1758777625697,2.47586609,4039.0,4038.8,0.5]
[1758777625928,2.72432166,4038.9,4038.8,0.5]
[1758777626425,3.19872166,4038.9,4038.8,0.5]
[1758777626600,2.72432166,4038.9,4038.8,0.5]
[1758777626921,39.68121417,4039.1,4038.8,0.5]
[1758777627123,2.72432166,4038.9,4038.8,0.5]
[1758777627737,39.68122175,4039.1,4038.8,0.5]
[1758777627738,37.20540298,4039.1,4038.8,0.5]
[1758777627946,0.2484,4039.0,4038.8,0.5]
[1758777628146,2.72432166,4038.9,4038.8,0.5]
[1758777628851,43.40412464,4038.9,4038.8,0.5]
[1758777629203,44.19612464,4038.9,4038.8,0.5]
[1758777630540,44.19612464,4038.9,4037.1,0.02]
[1758777630541,0.792,4038.7,4037.1,0.02]
[1758777630728,37.20540298,4037.8,4037.1,0.02]
[1758777630930,2.47672715,4037.6,4037.1,0.02]
[1758777631242,37.20540298,4037.8,4037.1,0.02]
[1758777631243,2.47696423,4037.2,4037.1,0.02]
[1758777631444,2.47690342,4037.3,4037.1,0.02]
[1758777631813,2.47696423,4037.2,4037.1,0.02]
[1758777632033,2.47691769,4037.3,4037.1,0.02]
[1758777632240,5.47696423,4037.2,4037.1,0.02]
[1758777632439,6.19976423,4037.2,4037.1,0.02]
[1758777632743,10.70076423,4037.2,4037.1,0.02]
[1758777634244,10.22636423,4037.2,4037.1,0.02]
[1758777634418,11.49276423,4037.2,4037.1,0.02]
[1758777634625,11.48576423,4037.2,4037.1,0.02]
[1758777635729,6.26908694,4037.0,4036.9,0.002]
[1758777636134,6.99188694,4037.0,4036.9,0.002]
[1758777636336,6.99188694,4037.0,4036.1,0.02]
[1758777636337,2.47757791,4036.2,4036.1,0.02]
[1758777636537,44.17498089,4036.2,4036.1,0.02]
[1758777636734,2.4776393,4036.1,4035.1,0.02]
[1758777636937,5.9520393,4036.1,4035.1,0.02]
[1758777637134,6.9924393,4036.1,4035.1,0.02]
[1758777637619,2.4781631,4035.3,4035.1,0.02]
[1758777637824,39.68359489,4035.2,4035.1,0.02]
[1758777638023,37.20540298,4035.2,4035.1,0.02]
[1758777638957,39.68359489,4035.2,4035.1,0.02]
[1758777639133,44.17359489,4035.2,4035.1,0.02]
[1758777639337,47.17359489,4035.2,4035.1,0.02]
[1758777639556,44.69540298,4035.2,4035.1,0.02]
[1758777639737,0.06330094,4035.3,4035.1,0.02]
[1758777640056,0.2484,4036.2,4035.2,0.6783]
[1758777640256,37.20540298,4036.3,4035.4,2.47802432]
[1758777640442,2.47758126,4036.2,4035.5,3.15630052]
[1758777640643,3.0,4036.2,4035.5,0.6783]
[1758777640961,5.47771768,4036.0,4035.5,0.6783]
[1758777641156,37.26695161,4036.3,4035.1,0.02]
[1758777641157,3.0,4035.7,4035.1,0.02]
[1758777641359,3.0,4035.2,4035.1,0.022]
[1758777642159,5.47819191,4035.2,4035.1,0.022]
[1758777642377,3.0,4035.2,4035.1,0.022]
[1758777642585,5.47819191,4035.2,4035.1,0.022]
[1758777642747,3.0,4035.2,4035.1,0.022]
[1758777643564,5.47819191,4035.2,4035.1,0.022]
[1758777643881,9.96919191,4035.2,4035.1,0.022]
[1758777644057,10.68109191,4035.2,4035.1,0.022]
[1758777644883,11.47309191,4035.2,4035.1,0.022]
[1758777645383,11.00329191,4035.2,4035.1,0.022]
[1758777645597,5.47819191,4035.2,4035.1,0.022]
[1758777645798,7.491,4035.2,4035.1,0.022]
[1758777646092,3.0,4035.6,4035.1,0.451]
[1758777646264,3.0,4035.4,4035.2,0.6749]
[1758777646470,3.0,4035.4,4035.3,0.2459]
[1758777646664,3.0,4035.4,4035.3,0.6749]
[1758777647061,3.0,4035.4,4035.3,0.2459]
[1758777647372,3.0,4035.4,4035.1,0.022]
[1758777647684,42.68359489,4035.2,4035.1,0.022]
[1758777648491,47.17559489,4035.2,4035.1,0.022]
[1758777649054,48.20969489,4035.2,4035.1,0.022]
[1758777649275,45.73150298,4035.2,4035.1,0.022]
[1758777649556,40.20540298,4035.2,4035.1,0.022]
[1758777649762,40.20540298,4035.2,4035.1,0.2679]
[1758777649966,40.20540298,4035.2,4035.1,0.022]
[1758777650210,47.41769489,4035.2,4035.1,0.022]
[1758777650370,48.20969489,4035.2,4035.1,0.022]
[1758777650566,48.67949489,4035.2,4035.1,0.022]
[1758777651157,2.47849902,4034.7,4034.6,0.002]
[1758777651318,47.967902,4034.7,4034.6,0.002]
[1758777651490,48.210002,4034.7,4034.6,0.002]
[1758777652069,48.679802,4034.7,4034.6,0.002]
[1758777652602,40.20540298,4034.7,4034.6,0.002]
[1758777652898,42.683902,4034.7,4034.6,0.002]
[1758777653097,47.175902,4034.7,4034.6,0.002]
[1758777654196,44.69740298,4034.7,4034.6,0.002]
[1758777654370,47.175902,4034.7,4034.6,0.002]
[1758777654981,47.175902,4034.7,4034.6,0.6769]
[1758777654982,3.0,4034.7,4034.6,0.6769]
[1758777655310,2.622,4035.8,4034.6,0.6769]
[1758777655311,37.20540298,4035.3,4034.6,0.6769]
[1758777655506,4.492,4035.2,4034.7,0.6749]
[1758777655708,4.492,4035.2,4034.6,0.002]
[1758777655873,4.492,4035.2,4034.8,0.6749]
[1758777656073,3.0,4035.1,4034.8,0.6749]
[1758777656383,2.4783867,4034.9,4034.6,0.002]
[1758777656585,3.0,4035.1,4034.6,0.002]
[1758777656786,3.0,4034.9,4034.6,0.002]
[1758777656987,5.47849902,4034.7,4034.6,0.002]
[1758777657406,3.0,4034.7,4034.6,0.002]
[1758777657610,5.47849902,4034.7,4034.6,0.002]
[1758777657998,9.97049902,4034.7,4034.6,0.002]
[1758777658395,10.21259902,4034.7,4034.6,0.002]
[1758777659803,11.00459902,4034.7,4034.6,0.002]
[1758777660326,10.76249902,4034.7,4034.6,0.002]
[1758777660513,11.00459902,4034.7,4034.6,0.002]
[1758777660712,42.17699147,4034.7,4034.6,0.002]
[1758777661606,39.45639245,4034.7,4034.6,0.002]
[1758777661805,31.17239245,4035.2,4034.6,0.2378]
[1758777662032,4.492,4035.1,4034.6,0.6868]
[1758777662206,5.47825819,4035.1,4034.7,0.6848]
[1758777662415,5.47832177,4035.0,4034.8,0.6848]
[1758777662623,3.0,4035.0,4034.9,0.6848]
[1758777663024,4.492,4035.1,4034.9,0.6848]
[1758777663025,3.0,4035.1,4034.9,0.6848]
[1758777663397,2.47831474,4035.0,4034.9,0.449]
[1758777663599,3.0,4035.1,4035.0,0.449]
[1758777664016,3.0,4035.1,4035.0,0.6848]
[1758777665877,3.0,4035.1,4034.6,0.002]
[1758777666044,2.4783696,4035.0,4034.7,0.6848]
[1758777666219,5.47827321,4035.1,4034.8,0.6848]
[1758777666418,3.0,4035.1,4034.8,0.6848]
[1758777666660,2.47796461,4035.6,4034.9,4.870493]
[1758777666825,3.0,4035.4,4034.9,4.870493]